bitfinex-derivatives/quotes_ETHF0:USTF0_20251116
["timestamp","ask_amount","ask_price","bid_price","bid_amount"]
[1763267615906,3.2078,3188.1,3188.0,0.1522243]
[1763267616423,18.4718,3188.1,3188.0,0.1522243]
[1763267617422,3.2078,3188.1,3188.0,0.3963243]
[1763267618104,3.2078,3188.1,3188.0,6.3963243]
[1763267618403,3.2078,3188.1,3188.0,0.3963243]
[1763267619311,3.2078,3188.1,3188.0,0.1522243]
[1763267622516,3.2078,3188.1,3187.5,0.1481]
[1763267623418,3.2078,3188.1,3187.5,0.15033126]
[1763267623612,3.2078,3188.1,3187.5,0.00223126]
[1763267623819,3.2078,3187.6,3187.5,0.15133126]
[1763267624014,3.2078,3187.6,3187.5,0.39543126]
[1763267624406,3.2078,3187.6,3187.5,0.15133126]
[1763267625310,3.2078,3187.6,3187.5,0.39543126]
[1763267628214,3.2078,3187.6,3187.5,6.39543126]
[1763267628409,3.2078,3188.0,3187.9,0.2441]
[1763267628720,5.0663967,3188.3,3188.0,0.1491]
[1763267630014,0.0033967,3188.3,3188.2,0.2441]
[1763267630419,0.0033967,3188.3,3188.0,0.1491]
[1763267630723,0.0033967,3188.3,3188.2,0.2441]
[1763267634821,0.0033967,3188.3,3188.2,1.37044689]
[1763267635016,3.21249741,3188.9,3188.8,0.2441]
[1763267636231,0.00800156,3188.9,3188.8,0.2441]
[1763267638129,3.2078,3189.3,3189.2,0.2441]
[1763267638828,3.2078,3189.8,3189.5,0.1414]
[1763267639034,3.21180934,3189.8,3189.7,0.2467]
[1763267641136,0.00400934,3189.8,3189.7,0.2467]
[1763267641731,0.00470507,3190.0,3189.9,0.2467]
[1763267642641,0.00692879,3190.0,3189.9,0.24948449]
[1763267645839,0.00692879,3190.0,3189.9,0.00278449]
[1763267646045,3.21472879,3190.0,3189.9,0.00278449]
[1763267647736,3.21472879,3190.0,3189.9,0.24948449]
[1763267648336,0.00692879,3190.0,3189.9,0.24948449]
[1763267648646,0.00692879,3190.0,3189.9,0.00278449]
[1763267648836,0.00692879,3190.0,3189.9,0.24948449]
[1763267654135,0.00692879,3190.0,3189.9,0.23918449]
[1763267664254,3.2078,3190.4,3190.3,0.2364]
[1763267664753,0.83576461,3190.9,3190.5,0.1391]
[1763267664946,3.2078,3190.6,3190.5,0.1391]
[1763267665354,3.21082001,3190.6,3190.5,0.1391]
[1763267667146,4.04658462,3190.6,3190.5,0.1391]
[1763267667854,3.21082001,3190.6,3190.5,0.1391]
[1763267668155,4.33267466,3190.6,3190.0,0.1391]
[1763267668352,3.2078,3190.1,3190.0,0.3755]
[1763267669841,3.2078,3190.1,3190.0,0.1391]
[1763267670246,3.2078,3190.1,3190.0,0.3668]
[1763267671652,0.83994315,3190.4,3190.0,0.3668]
[1763267671856,0.83994315,3190.4,3190.3,0.2277]
[1763267672058,19.56965465,3190.5,3190.3,0.2277]
[1763267672258,19.56965465,3190.5,3190.0,0.1391]
[1763267672458,0.83993356,3190.3,3190.0,0.1391]
[1763267673861,3.2078,3190.1,3190.0,0.3668]
[1763267676752,0.83993356,3190.4,3190.3,0.2277]
[1763267676957,3.2078,3190.5,3190.4,0.2277]
[1763267680066,3.2078,3190.5,3190.0,1.26544689]
[1763267680861,4.04773356,3190.5,3190.0,1.26544689]
[1763267681058,3.2078,3190.5,3190.0,1.26544689]
[1763267681662,18.4338,3190.5,3190.0,1.26544689]
[1763267682062,18.4318,3190.5,3190.0,1.26544689]
[1763267683265,18.4308,3190.5,3190.4,0.2277]
[1763267686266,15.223,3190.5,3190.4,0.2277]
[1763267686468,18.4308,3190.5,3190.4,0.2277]
[1763267686668,0.84322613,3190.6,3190.5,0.148]
[1763267687159,0.00302001,3190.6,3190.5,0.148]
[1763267688171,0.84322613,3190.6,3190.5,0.148]
[1763267688465,0.00302001,3190.6,3190.5,0.148]
[1763267688866,0.84322613,3190.6,3190.5,0.148]
[1763267693174,0.84322613,3190.6,3190.5,0.3757]
[1763267693374,16.05322613,3190.6,3190.5,0.3757]
[1763267693562,0.84322613,3190.6,3190.5,0.3757]
[1763267693766,14.58122613,3190.6,3190.5,0.3757]
[1763267695671,0.84322613,3190.6,3190.5,0.3757]
[1763267695876,0.00302001,3190.6,3190.5,0.3757]
[1763267701476,0.00302001,3190.6,3190.5,0.148]
[1763267701669,0.84322613,3190.6,3190.0,1.26544689]
[1763267701873,3.2078,3190.1,3190.0,0.389]
[1763267702184,18.4108,3190.1,3190.0,0.389]
[1763267702372,18.4108,3190.1,3190.0,0.1391]
[1763267703071,6.0,3190.0,3189.5,0.1414]
[1763267703269,3.2078,3189.6,3189.5,0.1414]
[1763267703483,18.4118,3189.6,3189.5,0.1414]
[1763267703979,19.25130953,3189.6,3189.5,0.14490058]
[1763267704181,18.4118,3189.6,3189.5,0.14490058]
[1763267705584,3.2078,3189.6,3189.5,0.39480058]
[1763267705777,18.4138,3189.6,3189.5,0.39480058]
[1763267709083,18.4138,3189.6,3189.5,0.14490058]
[1763267710086,18.4138,3189.6,3189.5,0.39480058]
[1763267711883,4.04730953,3190.0,3189.5,0.39480058]
[1763267712087,3.2078,3190.0,3189.9,0.2499]
[1763267712285,13.7238,3190.0,3189.9,0.2499]
[1763267713488,13.7238,3190.0,3189.5,0.14490058]
[1763267713788,3.2078,3189.6,3189.5,0.37450058]
[1763267713981,18.4108,3189.6,3189.5,0.37450058]
[1763267714778,15.203,3189.7,3189.5,0.37450058]
[1763267714983,15.203,3189.7,3189.6,0.2296]
[1763267718700,15.203,3189.7,3189.5,0.14490058]
[1763267718898,3.2078,3189.6,3189.5,0.14490058]
[1763267719398,3.2078,3189.6,3189.5,0.37450058]
[1763267720489,11.2248,3189.6,3189.5,0.37450058]
[1763267722291,3.2078,3189.6,3189.5,0.37450058]
[1763267723597,3.2078,3189.6,3189.5,0.14490058]
[1763267723794,3.2078,3189.6,3189.5,0.00350058]
[1763267724197,3.2078,3189.6,3189.5,0.14710058]
[1763267725799,3.2078,3189.6,3189.5,0.00350058]
[1763267726484,3.2078,3189.6,3189.3,0.00470507]
[1763267726485,3.2078,3189.6,3188.8,3.2078]
[1763267726685,3.2078,3189.2,3189.0,0.1436]
[1763267726888,15.202,3189.1,3188.5,0.1457]
[1763267727494,15.202,3189.1,3189.0,0.1436]
[1763267727693,0.00470507,3189.1,3189.0,0.3732]
[1763267728698,0.00470507,3189.1,3189.0,0.1436]
[1763267729098,0.00470507,3189.1,3189.0,0.3867]
[1763267734807,3.2078,3189.2,3189.1,0.2431]
[1763267735006,3.2078,3189.2,3189.1,1.37083039]
[1763267735308,0.83950953,3189.9,3189.7,0.2431]
[1763267735505,0.83950953,3189.9,3189.5,3.3497]
[1763267735506,13.224,3189.9,3189.5,3.3497]
[1763267735800,13.224,3189.9,3189.8,0.2431]
[1763267737605,4.0520146,3190.0,3189.5,3.3497]
[1763267737606,18.41250507,3190.0,3189.9,0.2431]
[1763267738806,0.00470507,3190.0,3189.9,0.2431]
[1763267742608,0.00470507,3190.0,3189.6,1.12769433]
[1763267742810,15.198,3189.9,3189.5,3.3497]
[1763267750416,15.198,3189.9,3189.5,0.1419]
[1763267751207,3.2078,3189.6,3189.5,0.1419]
[1763267751407,18.3988,3189.6,3189.5,0.1419]
[1763267754306,18.3988,3189.6,3189.0,0.1436]
[1763267754817,3.2078,3189.6,3189.5,0.1419]
[1763267755016,18.3988,3189.6,3189.5,0.1419]
[1763267755617,17.3988,3189.6,3189.5,0.1419]
[1763267759218,18.23830953,3189.6,3189.5,0.1419]
[1763267760416,2.2078,3189.6,3189.5,0.385]
[1763267760621,17.3998,3189.6,3189.5,0.385]
[1763267761316,2.2078,3189.6,3189.5,0.385]
[1763267761518,12.4708,3189.6,3189.5,0.385]
[1763267763621,3.2078,3189.9,3189.5,0.385]
[1763267763823,13.184,3189.8,3189.5,0.385]
[1763267764724,3.2078,3189.9,3189.8,0.2359]
[1763267766026,0.00470507,3190.0,3189.9,0.2359]
[1763267767516,0.00470507,3190.0,3189.9,6.2359]
[1763267767721,0.00470507,3190.0,3189.9,0.2359]
[1763267768324,15.192,3190.5,3190.0,0.1478]
[1763267771330,15.192,3190.5,3190.4,0.2359]
[1763267771830,0.00772508,3190.6,3190.5,0.1478]
[1763267772028,15.19772508,3190.6,3190.5,0.1478]
[1763267776137,15.19772508,3190.6,3190.1,0.00470507]
[1763267776436,3.2078,3190.3,3190.1,0.00470507]
[1763267776737,15.189,3190.2,3190.1,0.00470507]
[1763267787342,16.02850953,3190.2,3190.1,0.00470507]
[1763267789143,15.189,3190.2,3190.1,0.00470507]
[1763267789441,4.32708131,3190.3,3190.1,0.00470507]
[1763267789636,15.188,3190.2,3190.1,0.00470507]
[1763267790149,15.188,3190.2,3190.1,0.24470507]
[1763267790442,3.2078,3190.3,3190.2,0.2289]
[1763267790644,18.3958,3190.3,3190.2,0.2289]
[1763267793543,18.3958,3190.3,3190.1,0.00470507]
[1763267794345,19.23532499,3190.3,3190.1,0.00470507]
[1763267795045,19.23532499,3190.3,3190.2,0.2289]
[1763267795246,18.3958,3190.3,3190.2,0.2289]
[1763267807851,18.3948,3190.3,3190.1,0.00470507]
[1763267808652,0.83952499,3190.2,3190.1,0.00470507]
[1763267808855,20.07190637,3190.3,3189.5,0.1419]
[1763267809055,3.2078,3189.9,3189.5,0.1419]
[1763267809258,15.186,3189.8,3189.5,0.1419]
[1763267810953,15.186,3189.7,3189.6,0.2289]
[1763267811154,0.84070248,3190.1,3190.0,0.3651]
[1763267811360,16.02670248,3190.1,3190.0,0.3651]
[1763267811555,15.186,3190.1,3190.0,0.3651]
[1763267813354,15.186,3190.1,3190.0,0.1362]
[1763267814460,15.186,3190.1,3190.0,0.3651]
[1763267817765,4.04850248,3190.3,3190.0,0.3651]
[1763267818066,13.167,3190.2,3190.0,0.1362]
[1763267819667,14.00770248,3190.2,3189.7,1.12769433]
[1763267819972,0.84070248,3189.9,3189.5,0.1419]
[1763267820167,15.186,3189.8,3189.7,0.2361]
[1763267820664,0.84070248,3189.9,3189.7,0.2361]
[1763267820858,13.372,3189.8,3189.7,0.2361]
[1763267821164,0.84070248,3189.9,3189.7,0.2361]
[1763267821366,13.371,3189.8,3189.7,0.2361]
[1763267821962,0.84070248,3189.9,3189.7,0.2361]
[1763267822157,0.84070248,3190.0,3189.9,0.2361]
[1763267822364,3.2078,3190.2,3190.1,0.2361]
[1763267826676,14.55170248,3190.4,3190.1,0.2361]
[1763267827270,13.711,3190.4,3190.1,0.2361]
[1763267828173,0.84070248,3190.5,3190.4,0.2361]
[1763267830573,19.24122756,3190.6,3190.5,0.1491]
[1763267836481,18.40052508,3190.6,3190.5,0.1491]
[1763267837173,19.52146172,3190.6,3189.9,3.2078]
[1763267837374,0.83944691,3190.4,3190.0,0.1471]
[1763267837675,15.183,3190.3,3190.0,0.1471]
[1763267837869,16.02244691,3190.3,3190.0,0.1471]
[1763267838070,3.2078,3190.1,3190.0,0.1471]
[1763267838271,3.2078,3190.1,3189.6,1.12769433]
[1763267838470,16.02244691,3190.0,3189.5,3.3497]
[1763267844680,15.183,3189.9,3189.5,3.3497]
[1763267846675,16.02244691,3189.9,3189.5,0.1419]
[1763267846878,0.83944691,3189.8,3189.3,0.00470507]
[1763267847184,0.83944691,3189.7,3189.3,0.00470507]
[1763267847381,15.184,3189.6,3189.3,0.00470507]
[1763267849582,15.184,3189.6,3189.5,0.1492]
[1763267851983,4.04724691,3189.8,3189.5,0.1492]
[1763267852184,15.184,3189.7,3189.5,0.1492]
[1763267856893,4.04724691,3189.8,3189.5,0.1492]
[1763267857094,15.185,3189.7,3189.5,0.1492]
[1763267858396,16.02444691,3189.7,3189.3,0.00470507]
[1763267864095,19.41155744,3189.7,3189.3,0.00470507]
[1763267864698,0.83944691,3189.6,3189.3,0.00470507]
[1763267865205,0.83944691,3189.6,3189.5,0.1492]
[1763267866299,0.83944691,3189.6,3189.3,0.00470507]
[1763267867302,19.69304717,3189.7,3189.5,0.1492]
[1763267867798,19.69304717,3189.7,3189.3,0.00470507]
[1763267868001,0.83988899,3189.5,3189.3,0.00470507]
[1763267868198,15.184,3189.4,3189.3,0.00470507]
[1763267871206,16.02388899,3189.4,3189.3,0.00470507]
[1763267873102,16.30493664,3189.4,3189.0,0.1436]
[1763267873406,0.84032929,3189.2,3189.0,0.1436]
[1763267873607,16.02332929,3189.1,3189.0,0.1436]
[1763267875605,0.84032929,3189.1,3189.0,0.1436]
[1763267875905,16.02432929,3189.1,3189.0,0.1436]
[1763267877306,16.02432929,3189.1,3189.0,0.3779]
[1763267878413,0.84032929,3189.1,3189.0,0.3779]
[1763267878605,4.04812929,3189.5,3189.0,0.1436]
[1763267878806,13.613,3189.1,3189.0,0.3725]
[1763267880814,4.04812929,3189.5,3189.0,0.3725]
[1763267880815,0.84032929,3189.5,3189.4,0.2289]
[1763267881015,0.84032929,3189.6,3189.5,0.3701]
[1763267881510,0.25853459,3189.8,3189.7,0.2289]
[1763267881710,1.12093664,3190.1,3189.7,3.4367]
[1763267881912,1.67710637,3190.3,3190.1,0.2289]
[1763267882108,3.2078,3190.4,3190.0,0.1412]
[1763267885417,3.2078,3190.4,3190.3,0.2289]
[1763267887115,0.00772508,3190.6,3190.5,0.3701]
[1763267897619,0.00772508,3190.6,3190.0,0.1412]
[1763267897818,3.2078,3190.1,3190.0,0.1412]
[1763267898019,18.3838,3190.1,3190.0,0.1412]
[1763267901125,18.3838,3190.1,3189.5,0.1412]
[1763267901430,18.3838,3190.1,3190.0,0.1461]
[1763267903726,3.2078,3190.1,3190.0,0.1461]
[1763267903931,18.3838,3190.1,3190.0,0.3933]
[1763267904134,18.3838,3190.1,3190.0,0.1461]
[1763267906125,3.2078,3190.1,3190.0,0.1461]
[1763267906318,18.3848,3190.1,3190.0,0.1461]
[1763267910635,18.3848,3190.1,3190.0,0.3933]
[1763267913037,18.3848,3190.1,3190.0,0.1461]
[1763267918445,18.3848,3190.1,3189.5,0.1412]
[1763267918743,3.2078,3189.6,3189.5,0.1412]
[1763267918942,18.3838,3189.6,3189.0,0.1436]
[1763267919147,3.2078,3189.2,3189.0,0.1436]
[1763267919342,15.176,3189.1,3189.0,0.1436]
[1763267919744,15.176,3189.1,3188.5,0.14946008]
[1763267920042,3.2078,3188.6,3188.5,0.14946008]
[1763267920243,18.3838,3188.6,3188.5,0.38926008]
[1763267923247,15.176,3188.6,3188.5,0.38926008]
[1763267926049,0.00470507,3188.9,3188.8,0.2398]
[1763267926250,15.18270507,3188.9,3188.8,0.2398]
[1763267930156,15.18270507,3188.9,3188.5,0.14946008]
[1763267935753,3.2078,3188.6,3188.0,0.1397]
[1763267936060,3.2078,3188.2,3188.0,0.1397]
[1763267936259,15.179,3188.1,3188.0,0.1397]
[1763267936755,15.18287008,3188.1,3188.0,0.14264477]
[1763267938557,15.18287008,3188.1,3188.0,0.38244477]
[1763267939756,15.18287008,3188.1,3188.0,0.14264477]
[1763267940666,15.18287008,3188.1,3188.0,0.38974477]
[1763267940852,15.18387008,3188.1,3188.0,0.38974477]
[1763267943760,15.18387008,3188.1,3188.0,0.14264477]
[1763267943961,15.18387008,3188.1,3188.0,0.38974477]
[1763267949158,0.00387008,3188.1,3188.0,0.38974477]
[1763267949360,3.2078,3188.6,3188.5,0.3961]
[1763267950264,3.21087095,3188.6,3188.5,0.3961]
[1763267952967,0.00307095,3188.6,3188.5,0.3961]
[1763267956268,0.00307095,3188.6,3188.5,0.149]
[1763267957969,0.00307095,3188.6,3188.5,0.3779]
[1763267963770,0.00307095,3188.6,3188.5,0.149]
[1763267964070,18.38787095,3188.6,3188.5,0.1469]
[1763267967273,19.5089814,3188.6,3188.5,0.1469]
[1763267968074,18.38787095,3188.6,3188.5,0.1469]
[1763267968378,19.5089814,3188.6,3188.5,0.1469]
[1763267970781,18.38787095,3188.6,3188.0,0.14264477]
[1763267970975,4.04742343,3188.1,3188.0,0.14264477]
[1763267971175,19.22442343,3188.1,3188.0,0.14264477]
[1763267971378,19.22442343,3188.1,3188.0,0.37174477]
[1763267971575,18.3848,3188.1,3188.0,0.37174477]
[1763267973179,15.177,3188.1,3188.0,0.37174477]
[1763267973676,0.83962343,3188.2,3188.1,0.2291]
[1763267973870,16.01662343,3188.2,3188.1,0.2291]
[1763267974273,15.177,3188.2,3188.1,0.2291]
[1763267975671,0.83962343,3188.4,3188.3,0.2291]
[1763267975975,0.84269438,3188.6,3188.5,0.374]
[1763267976175,13.65607095,3188.6,3188.5,0.374]
[1763267977894,0.00307095,3188.6,3188.5,0.374]
[1763267979692,15.18170507,3188.9,3188.8,0.2291]
[1763267980492,15.18404036,3188.9,3188.8,0.2291]
[1763267980994,0.00704036,3188.9,3188.8,0.2291]
[1763267983800,0.00704036,3188.9,3188.8,3.4369]
[1763267987801,3.2078,3189.3,3188.8,3.4369]
[1763267987802,3.2078,3189.3,3189.2,0.2291]
[1763267988888,3.21112084,3189.3,3189.2,0.2291]
[1763267989804,0.00470507,3189.6,3189.5,0.374]
[1763267989995,3.2078,3190.2,3190.1,0.2291]
[1763267990891,3.21097368,3190.2,3190.1,0.2291]
[1763267993003,0.00317368,3190.2,3190.1,0.2291]
[1763267993509,0.00317368,3190.2,3190.1,3.4369]
[1763268001414,0.00317368,3190.2,3190.1,3.4386]
[1763268003017,5.07e-06,3190.5,3190.4,0.2308]
[1763268003918,3.2078,3191.5,3191.4,0.2308]
[1763268004517,9.085,3191.8,3191.7,0.2308]
[1763268005009,9.0889045,3191.8,3191.7,0.2308]
[1763268005816,0.0039045,3191.8,3191.7,0.2308]
[1763268006706,15.1679045,3191.8,3191.7,0.2308]
[1763268007319,0.0039045,3191.8,3191.7,0.2308]
[1763268007518,0.0039045,3191.8,3191.7,3.4386]
[1763268011429,0.00470507,3192.1,3192.0,0.3782]
[1763268012423,0.00748056,3192.1,3192.0,0.3782]
[1763268036539,0.84710399,3192.1,3192.0,0.3782]
[1763268037233,0.00748056,3192.1,3192.0,0.3782]
[1763268037431,0.84710399,3192.1,3192.0,0.3782]
[1763268046549,0.00748056,3192.1,3192.0,0.3782]
[1763268046747,0.84710399,3192.1,3192.0,0.3782]
[1763268048853,0.00748056,3192.1,3192.0,0.3782]
[1763268049456,0.83962343,3192.3,3192.2,0.2292]
[1763268049851,15.98962343,3192.4,3192.3,0.2292]
[1763268050357,15.99266812,3192.4,3192.3,0.2292]
[1763268050557,15.15304469,3192.4,3192.3,0.2292]
[1763268052459,15.15304469,3192.4,3192.1,3.2078]
[1763268052662,0.84231537,3192.2,3192.0,0.1474]
[1763268053362,0.84231537,3192.2,3192.1,0.2292]
[1763268054756,15.99131537,3192.3,3192.1,0.2292]
[1763268054958,15.99131537,3192.3,3192.2,0.2292]
[1763268060759,0.84231537,3192.3,3192.2,0.2292]
[1763268061063,14.39331537,3192.3,3192.2,0.2292]
[1763268066866,14.39331537,3192.3,3192.0,3.3552]
[1763268068766,14.39331537,3192.3,3192.2,0.2461]
[1763268070470,0.84231537,3192.3,3192.2,0.2461]
[1763268070770,15.98931537,3192.3,3192.2,0.2461]
[1763268071265,15.98931537,3192.3,3192.0,3.3552]
[1763268071266,19.19711537,3192.3,3192.0,0.1474]
[1763268071465,0.84142329,3192.1,3192.0,0.3935]
[1763268071667,0.84142329,3192.2,3192.0,0.3935]
[1763268073871,0.84142329,3192.1,3192.0,0.1474]
[1763268074562,0.84142329,3192.1,3191.6,4.33484261]
[1763268074763,0.84142329,3191.9,3191.5,1.27444261]
[1763268074963,0.84142329,3191.8,3191.5,0.1474]
[1763268075265,15.146,3191.7,3191.5,0.1474]
[1763268077468,15.146,3191.7,3191.6,0.2487]
[1763268078371,15.98742329,3191.7,3191.5,0.1474]
[1763268078674,15.98742329,3191.7,3191.6,0.2487]
[1763268080268,15.146,3191.7,3191.6,0.2487]
[1763268081974,15.146,3191.7,3191.6,3.4565]
[1763268085276,15.146,3191.7,3191.5,0.1474]
[1763268085976,15.146,3191.7,3191.6,0.2487]
[1763268087570,15.146,3191.7,3191.5,0.1474]
[1763268089572,15.146,3191.7,3191.2,2.76237075]
[1763268089573,15.98742329,3191.7,3191.2,2.76237075]
[1763268089874,1.67924687,3191.4,3190.7,2.458]
[1763268090076,4.32799702,3190.8,3190.4,1.379e-05]
[1763268090284,15.9850673,3190.7,3190.4,1.379e-05]
[1763268090776,0.8390673,3190.6,3190.4,1.379e-05]
[1763268091079,15.9850673,3190.7,3190.4,1.379e-05]
[1763268091472,3.2078,3190.8,3190.7,0.246]
[1763268091672,0.00470507,3190.9,3190.8,0.246]
[1763268094973,18.3548,3191.5,3191.0,0.1484]
[1763268096982,19.1938673,3191.5,3190.7,3.2078]
[1763268097879,15.147,3191.4,3190.7,3.2078]
[1763268098075,15.147,3191.4,3191.0,0.1484]
[1763268099690,4.0468673,3191.5,3191.0,0.1484]
[1763268099890,15.147,3191.4,3190.7,3.2078]
[1763268102088,15.9860673,3191.4,3190.7,3.2078]
[1763268102493,4.0468673,3191.5,3191.0,0.1484]
[1763268102987,3.2078,3191.5,3191.4,0.246]
[1763268103189,16.1878,3191.5,3191.4,0.246]
[1763268104894,3.2078,3191.5,3191.4,0.246]
[1763268105187,18.3548,3191.5,3191.4,0.246]
[1763268106093,15.147,3191.5,3191.4,0.246]
[1763268111598,15.147,3191.5,3191.0,3.3562]
[1763268113597,3.2078,3191.3,3191.0,0.1484]
[1763268114487,3.2078,3191.3,3190.6,3.2078]
[1763268114694,3.2078,3191.3,3190.5,0.1484]
[1763268114695,3.2078,3190.9,3190.5,0.1484]
[1763268114895,15.146,3190.8,3190.5,0.1484]
[1763268117006,0.8390673,3190.7,3190.5,0.1484]
[1763268117802,0.8390673,3190.7,3190.4,1.379e-05]
[1763268117999,0.8390673,3190.6,3190.4,1.379e-05]
[1763268118201,0.8390673,3190.6,3189.3,3.2078]
[1763268118202,3.2078,3190.5,3189.3,3.2078]
[1763268118402,3.2078,3190.0,3189.3,3.2078]
[1763268118602,15.146,3189.9,3189.3,3.2078]
[1763268118803,15.146,3189.9,3189.5,0.1378]
[1763268119302,15.146,3189.8,3189.7,0.2439]
[1763268120899,0.00266435,3189.9,3189.8,0.2439]
[1763268123804,0.00470507,3190.0,3189.9,0.2439]
[1763268124707,0.0074056,3190.0,3189.9,0.2439]
[1763268125514,0.0074056,3190.0,3189.7,3.2078]
[1763268125704,0.0074056,3190.0,3189.9,0.2439]
[1763268131914,6.59491053,3190.8,3190.7,0.2439]
[1763268132112,3.2078,3190.8,3190.5,0.1378]
[1763268133116,3.21116985,3190.8,3190.5,0.1378]
[1763268134316,3.2078,3190.6,3190.5,0.1378]
[1763268134617,0.00336985,3190.8,3190.5,0.1378]
[1763268135118,3.2078,3190.6,3190.5,0.1378]
[1763268135818,10.04659256,3190.6,3190.0,0.1378]
[1763268136022,0.83879256,3190.6,3190.5,0.1425]
[1763268136213,4.04659256,3190.6,3190.5,0.1425]
[1763268137010,4.04659256,3190.6,3190.0,0.1378]
[1763268137206,3.2078,3190.2,3190.0,0.1378]
[1763268137410,18.3558,3190.2,3190.0,0.1378]
[1763268140217,3.2078,3190.1,3190.0,0.1378]
[1763268149226,4.04814541,3190.1,3190.0,0.1378]
[1763268149525,4.04810971,3190.1,3190.0,0.1378]
[1763268150829,0.84030971,3190.1,3190.0,0.3843]
[1763268151328,18.3568,3190.2,3190.1,0.2465]
[1763268152530,3.2078,3190.2,3190.1,0.2465]
[1763268152730,18.3568,3190.2,3190.1,0.2465]
[1763268153823,15.149,3190.2,3190.1,0.2465]
[1763268154533,4.04810971,3190.6,3190.5,0.3958]
[1763268154830,16.7928,3190.6,3190.5,0.3958]
[1763268155826,13.585,3190.6,3190.5,0.1493]
[1763268156026,13.585,3190.6,3190.5,0.3958]
[1763268157229,13.585,3190.6,3190.0,0.1378]
[1763268157431,3.2078,3190.3,3190.0,0.1378]
[1763268157733,15.148,3190.2,3190.1,0.2465]
[1763268157925,3.2078,3190.3,3190.2,0.2465]
[1763268158125,18.3558,3190.3,3190.2,0.2465]
[1763268158327,15.148,3190.3,3190.2,0.2465]
[1763268158935,15.148,3190.3,3190.0,0.1378]
[1763268159138,19.19610971,3190.3,3190.0,0.1378]
[1763268161839,4.04810971,3190.3,3190.2,0.2465]
[1763268162041,14.41110971,3190.3,3190.2,0.2465]
[1763268163032,14.41110971,3190.3,3190.0,0.1378]
[1763268166345,4.04810971,3190.3,3190.2,0.2465]
[1763268166645,13.5698,3190.3,3190.2,0.2465]
[1763268167340,13.5698,3190.3,3190.0,0.1378]
[1763268167936,13.5698,3190.3,3190.2,0.2465]
[1763268169438,13.5698,3190.3,3190.0,0.1378]
[1763268170550,10.362,3190.3,3190.0,0.1378]
[1763268170739,13.5698,3190.3,3190.2,0.2465]
[1763268171542,0.84030971,3190.6,3190.4,0.2465]
[1763268171742,0.84030971,3190.7,3190.6,0.2465]
[1763268171946,16.99847956,3190.8,3190.7,0.2465]
[1763268172946,16.15816985,3190.8,3190.7,0.2465]
[1763268173450,3.21116985,3190.8,3190.7,0.2465]
[1763268173648,18.35716985,3190.8,3190.7,0.2465]
[1763268176046,3.21116985,3190.8,3190.7,0.2465]
[1763268179847,0.00336985,3190.8,3190.7,0.2465]
[1763268180347,0.00336985,3190.8,3190.7,1.3715349]
[1763268180748,0.00470507,3191.0,3190.9,0.241]
[1763268181555,0.00470507,3191.0,3190.8,1.1250349]
[1763268181754,0.00724787,3191.0,3190.7,1.1250349]
[1763268181954,0.00724787,3191.0,3190.6,1.1250349]
[1763268182456,0.00724787,3191.0,3190.5,4.4821349]
[1763268182658,0.00724787,3191.0,3190.9,0.241]
[1763268187360,0.00724787,3191.0,3190.5,3.3571]
[1763268189962,0.00724787,3191.0,3190.9,0.241]
[1763268193467,0.00724787,3191.0,3190.5,0.1493]
[1763268193660,3.2078,3190.9,3190.5,0.1493]
[1763268194561,3.2078,3190.9,3190.8,0.2393]
[1763268196065,3.2078,3190.9,3190.5,0.1493]
[1763268198469,4.04824498,3190.9,3190.5,0.1493]
[1763268203575,19.18924498,3190.9,3190.5,0.1493]
[1763268204870,3.2078,3190.9,3190.8,0.2393]
[1763268207677,18.3488,3190.9,3190.8,0.2393]
[1763268208074,18.3488,3190.9,3190.5,0.1493]
[1763268209082,18.3488,3190.9,3190.8,0.2393]
[1763268212078,3.2078,3190.9,3190.8,0.2393]
[1763268212277,18.3488,3190.9,3190.8,0.2393]
[1763268212788,18.3488,3190.9,3190.5,0.1493]
[1763268212987,19.18924498,3190.9,3190.5,0.1493]
[1763268215387,0.00724787,3191.0,3190.9,0.2328]
[1763268218184,1.11839008,3191.6,3191.5,0.3692]
[1763268218185,0.84044498,3191.6,3191.5,0.3692]
[1763268218487,4.04824498,3191.7,3191.6,0.2328]
[1763268218685,18.3478,3191.7,3191.6,0.2328]
[1763268219190,18.35108168,3191.7,3191.6,0.2328]
[1763268220486,3.21108168,3191.7,3191.6,0.2328]
[1763268220687,0.00328168,3191.7,3191.6,0.2328]
[1763268227601,0.00328168,3191.7,3191.5,0.1364]
[1763268228595,0.00328168,3191.7,3191.6,0.2328]
[1763268233604,0.00328168,3191.7,3191.5,0.1364]
[1763268236207,0.00328168,3191.7,3191.6,0.2328]
[1763268245012,11.96528168,3191.7,3191.6,0.2328]
[1763268249522,12.80572666,3191.7,3191.6,0.2328]
[1763268250527,12.80572666,3191.7,3191.5,0.1364]
[1763268250726,12.80572666,3191.7,3191.6,0.2281]
[1763268253927,12.80572666,3191.7,3191.5,0.1364]
[1763268254127,1.11839008,3191.6,3191.3,0.00470507]
[1763268254321,4.32619008,3191.4,3191.3,0.00470507]
[1763268254521,18.3408,3191.4,3191.3,0.00470507]
[1763268255426,19.46191278,3191.4,3191.3,0.00470507]
[1763268258329,18.3408,3191.4,3191.3,0.00470507]
[1763268260236,3.2078,3191.4,3191.3,0.23250507]
[1763268260537,19.18169381,3191.4,3191.3,0.23250507]
[1763268260832,3.2078,3191.4,3191.3,0.23250507]
[1763268261035,18.3418,3191.4,3191.3,0.23250507]
[1763268262737,15.134,3191.4,3191.3,0.23250507]
[1763268271740,15.134,3191.4,3191.3,0.00470507]
[1763268280044,15.97389381,3191.4,3191.3,0.00470507]
[1763268282045,15.134,3191.4,3191.3,0.00470507]
[1763268282441,0.83989381,3191.5,3191.3,0.00470507]
[1763268282639,0.83989381,3191.5,3191.4,0.2334]
[1763268282841,14.39189381,3191.5,3191.3,0.00470507]
[1763268286344,15.132,3191.4,3191.3,0.00470507]
[1763268287046,0.83989381,3191.5,3191.3,0.00470507]